[Event "Panevezys Elite Open 2019"]
[Site "Panevezys"]
[Date "2019.06.29"]
[Round "8.9"]
[White "Semjonovs, Ilja"]
[Black "Cholleti Sahajasri"]
[Result "1-0"]
[ECO "A04"]
[WhiteElo "2383"]
[BlackElo "2207"]
[Annotator "NA"]
[PlyCount "85"]
[EventDate "2019.06.24"]
[EventType "swiss"]
[EventCountry "LTU"]
[SourceTitle "playchess.com"]
[Source "ChessBase"]
[SourceQuality "1"]
[TimeControl "40/5400+30:1800+30"]

1. Nf3 {[%emt 0:01:09]} c5 {[%emt 0:03:53]} 2. c4 {[%emt 0:00:30]} Nc6 {[%emt 0:00:26]} 3. Nc3 {[%emt 0:01:04]} g6 {[%emt 0:04:41]} 4. e3 {[%emt 0:05:16]} Nf6 {[%emt 0:00:31]} 5. d4 {[%emt 0:01:32]} cxd4 {[%emt 0:00:10]} 6. exd4 {[%emt 0:00:24]} d5 {[%emt 0:00:36]} 7. Bg5 {[%emt 0:22:30]} Be6 {[%emt 0:00:55]} 8. c5 {[%emt 0:12:00]} Ne4 $11 {[%emt 0:06:47]} 9. Be3 {[%emt 0:01:06]} Bg7 {[%emt 0:04:18]} 10. h3 {[%emt 0:03:04]} O-O {[%emt 0:10:13]} 11. Bd3 {[%emt 0:12:32]} Nxc5 {[%emt 0:04:38]} 12. dxc5 {[%emt 0:00:44]} d4 {[%emt 0:00:02]} 13. Nxd4 {[%emt 0:06:16]} Nxd4 {[%emt 0:00:41]} 14. O-O {[%emt 0:03:13]} f5 {[%emt 0:10:27]} 15. Re1 {[%emt 0:02:04]} Bf7 {[%emt 0:01:16]} 16. Qd2 {[%emt 0:05:23]} Ne6 {[%emt 0:18:23]} 17. Rad1 {[%emt 0:02:59]} Kh8 {[%emt 0:04:32]} 18. Bh6 {[%emt 0:01:55]} Nxc5 {[%emt 0:03:33]} 19. Bxg7+ {[%emt 0:00:22]} Kxg7 {[%emt 0:00:01]} 20. Qe3 {[%emt 0:00:08]} Qb6 {[%emt 0:09:27]} 21. Bc4 {[%emt 0:06:21]} Ne4 {[%emt 0:02:58]} 22. Nxe4 {[%emt 0:03:48]} Qxe3 {[%emt 0:00:13]} 23. Rxe3 {[%emt 0:00:25]} Bxc4 {[%emt 0:00:32]} 24. Nc3 {[%emt 0:01:52]} Rf7 {[%emt 0:06:00]} 25. b3 {[%emt 0:01:01]} Ba6 {[%emt 0:00:06]} 26. Rde1 {[%emt 0:00:26]} Kf8 {[%emt 0:04:24]} 27. Nd5 {[%emt 0:00:21]} Rd8 {[%emt 0:01:54]} 28. Nf4 {[%emt 0:01:16]} Rd2 {[%emt 0:00:12]} 29. Ne6+ {[%emt 0:00:37]} Kg8 {[%emt 0:01:53]} 30. Ng5 {[%emt 0:00:48]} Rf8 {[%emt 0:00:01]} 31. Rxe7 {[%emt 0:00:19]} h6 {[%emt 0:00:02]} 32. Nf3 {[%emt 0:01:16]} Rxa2 {[%emt 0:01:03]} 33. R1e6 {[%emt 0:00:18]} Rf7 {[%emt 0:00:43]} 34. Rxg6+ {[%emt 0:00:36]} Kf8 {[%emt 0:00:02]} 35. Ree6 {[%emt 0:00:51]} Rg7 {[%emt 0:01:06]} 36. Rxh6 {[%emt 0:00:43]} Ra1+ {[%emt 0:00:02]} 37. Kh2 {[%emt 0:00:45]} Rf1 {[%emt 0:00:04]} 38. Ne5 {[%emt 0:01:52]} Rxf2 {[%emt 0:00:30]} 39. Rh8+ {[%emt 0:00:15]} Rg8 {[%emt 0:00:03]} 40. Ng6+ {[%emt 0:00:15]} Kg7 {[%emt 0:00:58]} 41. Re7+ {[%emt 0:30:13]} Kxg6 {[%emt 0:30:04]} 42. Rxg8+ {[%emt 0:00:05]} Kf6 {[%emt 0:00:03]} 43. Rgg7 {[%emt 0:01:04]} 1-0

[Event "Panevezys Elite Open 2019"]
[Site "Panevezys"]
[Date "2019.06.29"]
[Round "8.10"]
[White "Rudzinska, Michalina"]
[Black "Kaunas, Kestutis"]
[Result "1/2-1/2"]
[ECO "B03"]
[WhiteElo "2143"]
[BlackElo "2151"]
[Annotator "ChessBase"]
[PlyCount "122"]
[EventDate "2019.06.24"]
[EventType "swiss"]
[EventCountry "LTU"]
[SourceTitle "playchess.com"]
[Source "ChessBase"]
[SourceQuality "1"]
[TimeControl "40/5400+30:1800+30"]

1. e4 {[%emt 0:00:00]} Nf6 {[%emt 0:00:00]} 2. e5 {[%emt 0:00:00]} Nd5 {[%emt 0:00:00]} 3. d4 {[%emt 0:00:00]} d6 {[%emt 0:00:00]} 4. c4 {[%emt 0:00:00]} Nb6 {[%emt 0:00:02]} 5. exd6 {[%emt 0:00:05]} exd6 {[%emt 0:00:14]} 6. Nc3 {[%emt 0:00:10]} Nc6 {[%emt 0:04:18]} 7. Be3 {[%emt 0:02:40]} Be7 {[%emt 0:03:27]} 8. Bd3 {[%emt 0:00:20]} O-O {[%emt 0:12:46]} 9. b3 {[%emt 0:00:33]} Bf6 {[%emt 0:02:58]} 10. Nge2 {[%emt 0:00:14]} Bg4 {[%emt 0:03:25]} 11. Qd2 {[%emt 0:03:10]} d5 {[%emt 0:16:52]} 12. c5 {[%emt 0:01:27]} Nc8 {[%emt 0:00:03]} 13. O-O {[%emt 0:01:16]} N8e7 {[%emt 0:05:49]} 14. f3 {[%emt 0:02:48]} Bf5 {[%emt 0:01:05]} 15. g4 {[%emt 0:11:15]} Bxd3 {[%emt 0:01:29]} 16. Qxd3 {[%emt 0:00:05]} Ng6 {[%emt 0:08:46]} 17. f4 {[%emt 0:03:34]} h6 {[%emt 0:05:55]} 18. f5 {[%emt 0:04:40]} Nh4 {[%emt 0:01:46]} 19. Nf4 {[%emt 0:04:50]} Nb4 {[%emt 0:11:17]} 20. Qd2 {[%emt 0:01:44]} Re8 {[%emt 0:03:24]} 21. Rac1 {[%emt 0:08:16]} c6 {[%emt 0:06:06]} 22. a3 {[%emt 0:02:03]} Na6 {[%emt 0:00:04]} 23. Nh5 {[%emt 0:06:10]} Bg5 {[%emt 0:00:37]} 24. Bf4 {[%emt 0:02:55]} Nc7 {[%emt 0:01:51]} 25. Qf2 {[%emt 0:05:26]} Nb5 {[%emt 0:02:14]} 26. Nxb5 {[%emt 0:03:20]} cxb5 {[%emt 0:00:02]} 27. Rce1 {[%emt 0:01:54]} Re4 {[%emt 0:02:01]} 28. h3 {[%emt 0:05:59]} Qa5 {[%emt 0:02:59]} 29. Bg3 {[%emt 0:10:52]} Rxe1 {[%emt 0:00:23]} 30. Qxe1 {[%emt 0:00:44]} Qxe1 {[%emt 0:00:18]} 31. Bxe1 {[%emt 0:00:05]} Re8 {[%emt 0:01:27]} 32. Bxh4 {[%emt 0:05:49]} Bxh4 {[%emt 0:00:04]} 33. Nf4 {[%emt 0:01:03]} Bf6 {[%emt 0:01:36]} 34. Rd1 {[%emt 0:02:19]} Re4 {[%emt 0:00:18]} 35. Nxd5 {[%emt 0:00:34]} Bxd4+ {[%emt 0:00:03]} 36. Kg2 {[%emt 0:00:08]} Bxc5 {[%emt 0:01:48]} 37. Kf3 {[%emt 0:03:42]} Rd4 {[%emt 0:02:11]} 38. Rxd4 {[%emt 0:00:24]} Bxd4 {[%emt 0:00:02]} 39. Nc7 {[%emt 0:02:07]} a6 {[%emt 0:00:06]} 40. Ke4 {[%emt 0:00:21]} Bb2 {[%emt 0:00:24]} 41. a4 {[%emt 0:30:16]} bxa4 {[%emt 0:31:00]} 42. bxa4 {[%emt 0:00:08]} Kf8 {[%emt 0:00:00]} 43. Nd5 {[%emt 0:00:00]} Ke8 {[%emt 0:00:00]} 44. Nb6 {[%emt 0:00:00]} Ke7 {[%emt 0:00:00]} 45. Kd5 {[%emt 0:00:00]} Ba3 {[%emt 0:00:00]} 46. Nc4 {[%emt 0:00:00]} Bb4 {[%emt 0:00:00]} 47. Ne5 {[%emt 0:00:00]} Bc3 {[%emt 0:00:00]} 48. Nc4 {[%emt 0:00:00]} Bb4 {[%emt 0:00:00]} 49. Ne5 {[%emt 0:00:00]} Kf6 {[%emt 0:00:16]} 50. Nf3 {[%emt 0:00:00]} Be7 {[%emt 0:02:07]} 51. Kc4 {[%emt 0:00:00]} g6 {[%emt 0:00:37]} 52. fxg6 {[%emt 0:00:00]} fxg6 {[%emt 0:00:04]} 53. Kd5 {[%emt 0:00:00]} b5 {[%emt 0:01:01]} 54. axb5 {[%emt 0:00:00]} axb5 {[%emt 0:00:01]} 55. h4 {[%emt 0:00:00]} b4 {[%emt 0:03:04]} 56. Nd4 {[%emt 0:02:31]} h5 {[%emt 0:01:04]} 57. gxh5 {[%emt 0:03:37]} gxh5 {[%emt 0:00:02]} 58. Kc4 {[%emt 0:04:05]} Kg6 {[%emt 0:00:22]} 59. Nc6 {[%emt 0:01:22]} Bxh4 {[%emt 0:00:06]} 60. Nxb4 {[%emt 0:00:48]} Kf5 {[%emt 0:00:24]} 61. Kd3 {[%emt 0:00:51]} Be7 {[%emt 0:00:30] Ke4+ Ke5+} 1/2-1/2

[Event "Panevezys Elite Open 2019"]
[Site "Panevezys"]
[Date "2019.06.29"]
[Round "8.11"]
[White "Kalinowska, Zuzanna"]
[Black "Sinitsina, Anastassia"]
[Result "1/2-1/2"]
[ECO "A58"]
[WhiteElo "2093"]
[BlackElo "2095"]
[Annotator "NA"]
[PlyCount "95"]
[EventDate "2019.06.24"]
[EventType "swiss"]
[EventCountry "LTU"]
[SourceTitle "playchess.com"]
[Source "ChessBase"]
[SourceQuality "1"]
[TimeControl "40/5400+30:1800+30"]

1. d4 {[%emt 0:21:41]} Nf6 {[%emt 0:00:00]} 2. c4 {[%emt 0:00:10]} c5 {[%emt 0:00:00]} 3. d5 {[%emt 0:00:05]} b5 {[%emt 0:00:16]} 4. cxb5 {[%emt 0:00:31]} a6 {[%emt 0:00:11]} 5. bxa6 {[%emt 0:00:14]} g6 {[%emt 0:00:25]} 6. Nc3 {[%emt 0:00:08]} Bg7 {[%emt 0:00:51]} 7. e4 {[%emt 0:00:17]} O-O {[%emt 0:00:11]} 8. Nf3 {[%emt 0:00:28]} Qa5 {[%emt 0:00:57]} 9. Bd2 {[%emt 0:01:27]} Bxa6 {[%emt 0:00:37]} 10. Be2 {[%emt 0:01:11]} d6 {[%emt 0:00:36]} 11. O-O {[%emt 0:00:30]} Bxe2 {[%emt 0:00:25]} 12. Qxe2 {[%emt 0:00:15]} Qa6 {[%emt 0:00:06]} 13. Rfe1 {[%emt 0:03:52]} Qxe2 {[%emt 0:03:12]} 14. Rxe2 {[%emt 0:00:09]} Nbd7 {[%emt 0:04:28]} 15. b3 {[%emt 0:04:34]} Rfb8 {[%emt 0:02:59]} 16. Rc1 {[%emt 0:03:54]} Ne8 {[%emt 0:04:58]} 17. Na4 {[%emt 0:03:41]} Nb6 {[%emt 0:03:54]} 18. Nxb6 {[%emt 0:01:01]} Rxb6 {[%emt 0:00:07]} 19. Bc3 {[%emt 0:01:34]} Nc7 {[%emt 0:03:11]} 20. Bxg7 {[%emt 0:03:57]} Kxg7 {[%emt 0:00:07]} 21. Rcc2 {[%emt 0:02:03]} Ra7 {[%emt 0:06:06]} 22. Rcd2 {[%emt 0:11:01]} Nb5 {[%emt 0:03:21]} 23. Re3 {[%emt 0:02:15]} Rba6 {[%emt 0:03:38]} 24. a4 {[%emt 0:00:48]} Nc7 {[%emt 0:00:05]} 25. Rc3 {[%emt 0:03:21]} Rb6 {[%emt 0:00:24]} 26. Rd1 {[%emt 0:04:17]} Rb4 {[%emt 0:01:24]} 27. Nd2 {[%emt 0:02:13]} Rab7 {[%emt 0:01:42]} 28. Kf1 {[%emt 0:01:49]} f5 {[%emt 0:02:29]} 29. f3 {[%emt 0:01:36]} Ne8 {[%emt 0:01:18]} 30. Re1 {[%emt 0:05:28]} Nf6 {[%emt 0:00:52]} 31. h3 {[%emt 0:00:31]} fxe4 {[%emt 0:02:21]} 32. fxe4 {[%emt 0:00:11]} Rd4 {[%emt 0:00:11]} 33. Re2 {[%emt 0:02:26]} Rxd2 {[%emt 0:00:32]} 34. Rxd2 {[%emt 0:00:09]} Nxe4 {[%emt 0:00:05]} 35. Rdd3 {[%emt 0:01:37]} Nxc3 {[%emt 0:00:08]} 36. Rxc3 {[%emt 0:00:05]} Kf6 {[%emt 0:05:35]} 37. Re3 {[%emt 0:03:18]} Rb4 {[%emt 0:01:49]} 38. Ke2 {[%emt 0:05:23]} Rd4 {[%emt 0:02:30]} 39. a5 {[%emt 0:09:20]} Rb4 {[%emt 0:00:16]} 40. Rf3+ {[%emt 0:00:51]} Kg7 {[%emt 0:00:11]} 41. Rf1 {[%emt 0:31:24]} Rxb3 {[%emt 0:30:23]} 42. Ra1 {[%emt 0:00:09]} e6 {[%emt 0:03:41]} 43. a6 {[%emt 0:00:00]} Rb8 {[%emt 0:00:00]} 44. a7 {[%emt 0:00:00]} Ra8 {[%emt 0:00:00]} 45. dxe6 {[%emt 0:00:00]} Kf6 {[%emt 0:00:00]} 46. Kd3 {[%emt 0:00:00]} Kxe6 {[%emt 0:00:00]} 47. Kc4 {[%emt 0:00:00]} Kd7 {[%emt 0:00:00]} 48. Kd5 {[%emt 0:00:00]} 1/2-1/2

[Event "Panevezys Elite Open 2019"]
[Site "Panevezys"]
[Date "2019.06.29"]
[Round "8.12"]
[White "Juknis, Paulius"]
[Black "Zaura, Vidmantas"]
[Result "1/2-1/2"]
[ECO "D00"]
[WhiteElo "2169"]
[BlackElo "2223"]
[Annotator "NA"]
[PlyCount "86"]
[EventDate "2019.06.24"]
[EventType "swiss"]
[EventCountry "LTU"]
[SourceTitle "playchess.com"]
[Source "ChessBase"]
[SourceQuality "1"]
[TimeControl "40/5400+30:1800+30"]

1. d4 {[%emt 0:00:00]} d5 {[%emt 0:00:00]} 2. Bf4 {[%emt 0:00:00]} Nf6 {[%emt 0:00:00]} 3. e3 {[%emt 0:00:00]} Bf5 {[%emt 0:00:14]} 4. c4 {[%emt 0:00:55]} c6 {[%emt 0:00:09]} 5. Nc3 {[%emt 0:00:09]} e6 {[%emt 0:00:16]} 6. Qb3 {[%emt 0:00:08]} Qb6 {[%emt 0:00:21]} 7. c5 {[%emt 0:00:08]} Qxb3 {[%emt 0:01:45]} 8. axb3 {[%emt 0:00:01]} Nbd7 {[%emt 0:00:57]} 9. b4 {[%emt 0:00:44]} e5 {[%emt 0:13:19]} 10. dxe5 $16 {[%emt 0:15:37]} Nh5 {[%emt 0:33:29]} 11. Nf3 {[%emt 0:05:56]} f6 {[%emt 0:08:18]} 12. exf6 {[%emt 0:05:15]} Nxf4 {[%emt 0:01:04]} 13. exf4 {[%emt 0:00:26]} Nxf6 {[%emt 0:04:42]} 14. Nd4 {[%emt 0:01:08]} Bd7 {[%emt 0:01:02]} 15. Bd3 {[%emt 0:02:51]} Kf7 {[%emt 0:01:52]} 16. O-O {[%emt 0:01:37]} g6 {[%emt 0:03:41]} 17. f5 {[%emt 0:04:59]} Bg7 {[%emt 0:04:10]} 18. fxg6+ {[%emt 0:04:54]} hxg6 {[%emt 0:00:05]} 19. Nf3 {[%emt 0:00:12]} Ng4 {[%emt 0:04:08]} 20. Rfe1 {[%emt 0:04:00]} Rh5 {[%emt 0:01:42]} 21. h3 {[%emt 0:02:58]} Ne5 {[%emt 0:00:58]} 22. Nxe5+ {[%emt 0:00:33]} Rxe5 {[%emt 0:01:20]} 23. f4 {[%emt 0:10:05]} Rxe1+ {[%emt 0:01:31]} 24. Rxe1 {[%emt 0:00:02]} Bd4+ {[%emt 0:08:16]} 25. Kh2 {[%emt 0:02:25]} Rh8 {[%emt 0:01:00]} 26. Kg3 {[%emt 0:02:16]} Kf6 {[%emt 0:00:41]} 27. Kf3 {[%emt 0:02:26]} a5 {[%emt 0:03:06]} 28. bxa5 {[%emt 0:10:59]} Bxc5 {[%emt 0:00:29]} 29. Na4 {[%emt 0:05:37]} Bb4 {[%emt 0:00:16]} 30. Ra1 {[%emt 0:00:27]} Be6 {[%emt 0:02:25]} 31. a6 {[%emt 0:03:08]} bxa6 {[%emt 0:01:12]} 32. Bxa6 {[%emt 0:00:11]} Rb8 {[%emt 0:00:15]} 33. h4 {[%emt 0:01:45]} Bd6 {[%emt 0:01:22]} 34. g3 {[%emt 0:01:14]} Rb3+ {[%emt 0:00:20]} 35. Kf2 {[%emt 0:01:04]} Bg4 {[%emt 0:00:33]} 36. Rc1 {[%emt 0:03:48]} c5 {[%emt 0:00:45]} 37. Nxc5 {[%emt 0:02:19]} Rxb2+ {[%emt 0:00:03]} 38. Ke3 {[%emt 0:00:45]} Rg2 {[%emt 0:00:49]} 39. Kd4 {[%emt 0:00:46]} Rxg3 {[%emt 0:02:15]} 40. Kxd5 {[%emt 0:01:17]} Bxf4 {[%emt 0:00:23]} 41. Ne4+ {[%emt 0:32:47]} Kg7 {[%emt 0:30:12]} 42. Nxg3 {[%emt 0:00:27]} Bxc1 {[%emt 0:00:16]} 43. Ke5 {[%emt 0:02:14]} Kh6 {[%emt 0:00:00]} 1/2-1/2

[Event "Panevezys Elite Open 2019"]
[Site "Panevezys"]
[Date "2019.06.29"]
[Round "8.13"]
[White "Harshita Guddanti"]
[Black "Stasans, Aivars"]
[Result "1/2-1/2"]
[ECO "B35"]
[WhiteElo "2072"]
[BlackElo "2039"]
[Annotator "NA"]
[PlyCount "115"]
[EventDate "2019.06.24"]
[EventType "swiss"]
[EventCountry "LTU"]
[SourceTitle "playchess.com"]
[Source "ChessBase"]
[SourceQuality "1"]
[TimeControl "40/5400+30:1800+30"]

1. e4 {[%emt 0:00:00]} c5 {[%emt 0:00:00]} 2. Nf3 {[%emt 0:00:00]} Nc6 {[%emt 0:00:00]} 3. d4 {[%emt 0:00:05]} cxd4 {[%emt 0:00:00]} 4. Nxd4 {[%emt 0:00:05]} g6 {[%emt 0:00:00]} 5. Nc3 {[%emt 0:00:40]} Bg7 {[%emt 0:00:05]} 6. Be3 {[%emt 0:00:06]} Nf6 {[%emt 0:00:09]} 7. Bc4 {[%emt 0:00:07]} O-O {[%emt 0:00:07]} 8. Bb3 {[%emt 0:00:06]} a6 {[%emt 0:00:07]} 9. f3 {[%emt 0:02:45]} Qc7 {[%emt 0:02:40]} 10. Qd2 {[%emt 0:07:14]} Na5 {[%emt 0:15:39]} 11. Qe2 {[%emt 0:03:57]} b5 {[%emt 0:06:32]} 12. Nd5 {[%emt 0:10:29]} Nxd5 {[%emt 0:02:26]} 13. exd5 {[%emt 0:04:56]} Nxb3 {[%emt 0:04:16]} 14. axb3 {[%emt 0:00:58]} Bb7 {[%emt 0:00:47]} 15. c4 {[%emt 0:01:56]} Rfc8 {[%emt 0:08:08]} 16. Rc1 {[%emt 0:03:28]} Bxd5 {[%emt 0:03:15]} 17. Qd2 {[%emt 0:03:07]} bxc4 {[%emt 0:01:56]} 18. bxc4 {[%emt 0:00:07]} Bb7 {[%emt 0:00:26]} 19. O-O {[%emt 0:00:46]} d6 {[%emt 0:04:04]} 20. Rfe1 {[%emt 0:02:07]} Re8 {[%emt 0:05:29]} 21. b4 {[%emt 0:04:43]} e5 {[%emt 0:01:38]} 22. Nb3 {[%emt 0:00:21]} Rab8 {[%emt 0:10:00]} 23. Red1 {[%emt 0:03:14]} Bf8 {[%emt 0:01:15]} 24. Ba7 {[%emt 0:03:20]} Rbc8 {[%emt 0:02:24]} 25. Qe3 {[%emt 0:01:00]} Bc6 {[%emt 0:01:35]} 26. Ra1 {[%emt 0:02:59]} Ra8 {[%emt 0:08:49]} 27. Bb6 {[%emt 0:02:16]} Qc8 {[%emt 0:01:47]} 28. Nd2 {[%emt 0:09:26]} f5 {[%emt 0:06:00]} 29. Qb3 {[%emt 0:01:15]} Qe6 {[%emt 0:00:41]} 30. Ra5 {[%emt 0:03:36]} Bh6 {[%emt 0:01:31]} 31. Nf1 {[%emt 0:01:04]} e4 {[%emt 0:05:59]} 32. fxe4 {[%emt 0:02:43]} Bxe4 {[%emt 0:00:01]} 33. Bd4 {[%emt 0:05:57]} Rec8 {[%emt 0:03:14]} 34. Qh3 {[%emt 0:03:13]} Bf8 {[%emt 0:00:48]} 35. Nd2 {[%emt 0:00:45]} Bb7 {[%emt 0:00:36]} 36. Raa1 {[%emt 0:04:59]} Re8 {[%emt 0:01:03]} 37. Rac1 {[%emt 0:02:10]} Rac8 {[%emt 0:00:51]} 38. Qg3 {[%emt 0:04:23]} Qe2 {[%emt 0:01:03]} 39. c5 {[%emt 0:00:08]} f4 {[%emt 0:01:50]} 40. Qb3+ {[%emt 0:03:56]} Qe6 {[%emt 0:00:02]} 41. Qa3 {[%emt 0:34:01]} dxc5 {[%emt 0:30:59]} 42. bxc5 {[%emt 0:00:00]} Bd5 {[%emt 0:00:00]} 43. Nf3 {[%emt 0:00:00]} h6 {[%emt 0:00:00]} 44. Re1 {[%emt 0:00:00]} Qf5 {[%emt 0:00:00]} 45. Nh4 {[%emt 0:00:00]} Qg4 {[%emt 0:00:00]} 46. Qxa6 {[%emt 0:00:00]} Rc6 {[%emt 0:00:00]} 47. Qf1 {[%emt 0:00:00]} Rxe1 {[%emt 0:00:00]} 48. Qxe1 {[%emt 0:00:00]} Re6 {[%emt 0:00:00]} 49. Qf2 {[%emt 0:00:18]} f3 {[%emt 0:00:00]} 50. h3 {[%emt 0:00:57]} Qg5 {[%emt 0:02:04]} 51. Re1 {[%emt 0:02:14]} Rxe1+ {[%emt 0:00:17]} 52. Qxe1 {[%emt 0:00:10]} fxg2 {[%emt 0:00:16]} 53. Be3 {[%emt 0:03:13]} Qf6 {[%emt 0:01:32]} 54. Nxg2 {[%emt 0:00:29]} Qf3 {[%emt 0:01:06]} 55. Qd2 {[%emt 0:00:20]} Kf7 {[%emt 0:01:41]} 56. Qf2 {[%emt 0:00:48]} g5 {[%emt 0:00:31]} 57. Qxf3+ {[%emt 0:00:09]} Bxf3 {[%emt 0:00:02]} 58. Kf2 {[%emt 0:00:24]} 1/2-1/2

[Event "Panevezys Elite Open 2019"]
[Site "Panevezys"]
[Date "2019.06.30"]
[Round "9"]
[White "Laurusas, Tomas"]
[Black "Ulybin, Mikhail"]
[Result "0-1"]
[ECO "A90"]
[WhiteElo "2507"]
[BlackElo "2474"]
[Annotator "ChessBase"]
[PlyCount "68"]
[EventDate "2019.??.??"]
[EventCountry "LTU"]
[SourceTitle "playchess.com"]
[Source "ChessBase"]
[SourceQuality "1"]
[TimeControl "40/5400+30:1800+30"]

1. d4 e6 2. c4 f5 3. g3 Nf6 4. Bg2 d5 5. Nh3 c6 6. O-O Bd6 7. Nd2 O-O 8. Qc2 b6 9. Nf4 Qe7 10. Nf3 Ne4 11. Nd3 Ba6 12. Nfe5 Rc8 13. b3 Nd7 14. Bb2 Nxe5 15. Nxe5 Bxe5 16. dxe5 dxc4 17. bxc4 Qb4 18. Rfc1 Rd8 19. Qb3 Qc5 20. Bxe4 fxe4 21. Rc2 Rd7 22. Qc3 Rf8 23. Rf1 Rf5 24. g4 Rf4 25. Qg3 Qf8 26. c5 e3 27. Qxe3 Rxg4+ 28. Kh1 Qf5 29. Rd2 Re4 30. Rxd7 Rxe3 31. Rg1 g5 32. fxe3 Qe4+ 33. Rg2 Bxe2 34. h3 Bf3 0-1

[Event "Panevezys Elite Open 2019"]
[Site "Panevezys"]
[Date "2019.06.30"]
[Round "9"]
[White "Gleizerov, Evgeny"]
[Black "Kubicka, Anna"]
[Result "1-0"]
[ECO "E20"]
[WhiteElo "2495"]
[BlackElo "2162"]
[Annotator "ChessBase"]
[PlyCount "106"]
[EventDate "2019.??.??"]
[EventCountry "LTU"]
[SourceTitle "playchess.com"]
[Source "ChessBase"]
[SourceQuality "1"]
[TimeControl "40/5400+30:1800+30"]

1. d4 Nf6 2. c4 e6 3. g3 d5 4. Nf3 dxc4 5. Bg2 Bb4+ 6. Nc3 O-O 7. O-O Nbd7 8. Qc2 a6 9. Rd1 h6 10. Ne5 Nxe5 11. dxe5 Nd7 12. Ne4 Qe7 13. a3 Ba5 14. Bxh6 Nxe5 15. Bg5 f6 16. Bf4 Nf7 17. Qxc4 Bb6 18. Qc3 e5 19. Be3 Bxe3 20. Qxe3 Be6 21. Qc5 Rae8 22. Qxe7 Rxe7 23. Nc5 c6 24. Nxe6 Rxe6 25. Rd7 Rb8 26. Rad1 Kf8 27. Bh3 Ree8 28. Rc7 Red8 29. Rxd8+ Nxd8 30. Kf1 a5 31. Ke1 Nf7 32. Be6 Nd8 33. Ba2 b5 34. Rd7 c5 35. Bd5 b4 36. a4 Rc8 37. b3 g6 38. h4 f5 39. Rh7 Rb8 40. Ra7 c4 41. Bxc4 Nc6 42. Rf7+ Ke8 43. Rf6 Nd4 44. Rxg6 Ke7 45. Ra6 Rd8 46. Rxa5 Nc2+ 47. Kf1 Rd1+ 48. Kg2 Kf6 49. Ra6+ Kg7 50. h5 Ne1+ 51. Kh2 f4 52. gxf4 exf4 53. Rb6 Rd2 1-0

[Event "Panevezys Elite Open 2019"]
[Site "Panevezys"]
[Date "2019.06.30"]
[Round "9"]
[White "Harutjunyan, Gevorg"]
[Black "Sulskis, Sarunas"]
[Result "1/2-1/2"]
[ECO "C57"]
[WhiteElo "2446"]
[BlackElo "2528"]
[Annotator "ChessBase"]
[PlyCount "61"]
[EventDate "2019.??.??"]
[EventCountry "LTU"]
[SourceTitle "playchess.com"]
[Source "ChessBase"]
[SourceQuality "1"]
[TimeControl "40/5400+30:1800+30"]

1. e4 e5 2. Nf3 Nc6 3. Bc4 Nf6 4. Ng5 d5 5. exd5 b5 6. Be2 Nd4 7. Nf3 Bd6 8. d3 Nxe2 9. Qxe2 O-O 10. Bg5 h6 11. Bxf6 Qxf6 12. Nc3 Bg4 13. Ne4 Qg6 14. h3 Bxf3 15. Qxf3 f5 16. Nxd6 Qxd6 17. O-O Qb4 18. Rab1 Rad8 19. Rfe1 Qd4 20. b4 Rxd5 21. c3 Qxd3 22. Qxd3 Rxd3 23. Rxe5 Rxc3 24. Rxb5 Rf6 25. Ra5 a6 26. b5 axb5 27. Rbxb5 Rc1+ 28. Kh2 Rc2 29. Rxf5 Rxf2 30. Rxf2 Rxf2 31. a4 1/2-1/2

[Event "Panevezys Elite Open 2019"]
[Site "Panevezys"]
[Date "2019.06.30"]
[Round "9"]
[White "Krishna Teja, N."]
[Black "Badelka, Olga"]
[Result "0-1"]
[ECO "D20"]
[WhiteElo "2357"]
[BlackElo "2391"]
[Annotator "NA"]
[PlyCount "105"]
[EventDate "2019.??.??"]
[EventCountry "LTU"]
[SourceTitle "playchess.com"]
[Source "ChessBase"]
[SourceQuality "1"]
[TimeControl "40/5400+30:1800+30"]

1. d4 d5 2. c4 dxc4 3. e4 Nf6 4. e5 Nd5 5. Bxc4 Nb6 6. Bd3 Nc6 7. Ne2 Bg4 8. Be3 e6 9. Nbc3 Qd7 10. O-O O-O-O 11. f3 Bh5 12. a4 a6 13. a5 Nd5 14. Nxd5 exd5 15. Ng3 Bg6 16. f4 Bxd3 17. Qxd3 f6 18. Bd2 h5 19. Rae1 Re8 20. Qe3 h4 21. e6 Qd8 22. Nf5 g6 23. e7 Bxe7 24. Qe6+ Qd7 25. Nxe7+ Nxe7 26. Qxf6 h3 27. g3 Qf5 28. Qe6+ Qxe6 29. Rxe6 Kd7 30. Re5 c6 31. g4 Nc8 32. Kf2 Nd6 33. Rfe1 Ne4+ 34. Ke3 Rh4 35. Rg1 Rxe5 36. fxe5 Ke6 37. b4 Rh8 38. Rf1 Rb8 39. Be1 b6 40. axb6 Rxb6 41. Rf8 a5 42. bxa5 Rb3+ 43. Ke2 Rb2+ 44. Kf1 Rxh2 45. Rh8 c5 46. a6 Ra2 47. dxc5 Nxc5 48. Rxh3 Kxe5 49. Rc3 Ne4 50. Rc6 g5 51. Rb6 Kd4 52. Kg1 Ra1 53. Kf1 0-1

[Event "Panevezys Elite Open 2019"]
[Site "Panevezys"]
[Date "2019.06.30"]
[Round "9"]
[White "Krykun, Yuriy"]
[Black "Krivonosov, Oleg"]
[Result "1/2-1/2"]
[ECO "E07"]
[WhiteElo "2342"]
[BlackElo "2411"]
[Annotator "ChessBase"]
[PlyCount "88"]
[EventDate "2019.??.??"]
[EventCountry "LTU"]
[SourceTitle "playchess.com"]
[Source "ChessBase"]
[SourceQuality "1"]
[TimeControl "40/5400+30:1800+30"]

1. d4 d5 2. c4 e6 3. Nc3 Be7 4. Nf3 Nf6 5. g3 O-O 6. Bg2 c6 7. O-O Nbd7 8. Qd3 b6 9. b3 Bb7 10. Bb2 Rc8 11. Rfd1 Qc7 12. Rac1 Qb8 13. e4 dxe4 14. Nxe4 c5 15. Nxf6+ Bxf6 16. Ne5 Nxe5 17. dxe5 Bg5 18. f4 Rfd8 19. Qc2 Be7 20. Be4 g6 21. Qg2 Bxe4 22. Qxe4 Rxd1+ 23. Rxd1 Rd8 24. Rxd8+ Qxd8 25. Bc3 Qd1+ 26. Be1 h5 27. h4 Qa1 28. Qe2 Qb1 29. Kh2 Kg7 30. Bf2 Kg8 31. Qd2 Kf8 32. Be3 Qe4 33. Bg1 Kg8 34. a4 Kg7 35. Bf2 Qb1 36. Qe3 Qf1 37. Bg1 Kg8 38. Qd2 Kg7 39. Qf2 Qd3 40. Qe3 Qf1 41. Qd2 Kg8 42. Qg2 Qd3 43. Qb2 Qf1 44. Qg2 Qd3 1/2-1/2

[Event "Panevezys Elite Open 2019"]
[Site "Panevezys"]
[Date "2019.06.30"]
[Round "9"]
[White "Stauskas, Lukas"]
[Black "Brazdzionis, Andrius"]
[Result "1-0"]
[ECO "D31"]
[WhiteElo "2306"]
[BlackElo "2337"]
[Annotator "NA"]
[PlyCount "49"]
[EventDate "2019.??.??"]
[EventCountry "LTU"]
[SourceTitle "playchess.com"]
[Source "ChessBase"]
[SourceQuality "1"]
[TimeControl "40/5400+30:1800+30"]

1. d4 d5 2. c4 e6 3. Nc3 a6 4. cxd5 exd5 5. Bf4 Nf6 6. e3 Bd6 7. Bg3 O-O 8. Bd3 Re8 9. Nge2 c6 10. Qc2 Bg4 11. Bh4 h6 12. f3 Be6 13. e4 dxe4 14. fxe4 Be7 15. O-O Nbd7 16. h3 Rc8 17. Rad1 Nf8 18. Kh1 c5 19. d5 Bd7 20. d6 Bxd6 21. Bxf6 gxf6 22. Qc1 Nh7 23. e5 Bf8 24. Bxh7+ Kxh7 25. Qd2 1-0